[Event "44th Chess Olympiad Open 2022"]
[Site "Chennai"]
[Date "2022.08.05"]
[Round "7.22"]
[White "Bogner, Sebastian"]
[Black "Fluvia Poyatos, Jordi"]
[Result "1/2-1/2"]
[ECO "B12"]
[WhiteElo "2545"]
[BlackElo "2451"]
[Annotator "ChessBase"]
[PlyCount "126"]
[EventDate "2022.07.29"]
[EventType "team-tourn"]
[EventCountry "IND"]
[SourceTitle "playchess.com"]
[Source "ChessBase"]
[SourceQuality "1"]
[WhiteTeam "Switzerland"]
[BlackTeam "Andorra"]
[WhiteTeamCountry "SUI"]
[BlackTeamCountry "AND"]
[TimeControl "40/5400+30:1800+30"]

1. e4 {[%emt 0:00:02]} c6 {[%emt 0:00:31]} 2. d4 {[%emt 0:00:31]} d5 {[%emt 0:00:14]} 3. e5 {[%emt 0:00:05]} c5 {[%emt 0:00:23]} 4. Nf3 {[%emt 0:00:05]} cxd4 {[%emt 0:01:18]} 5. Qxd4 {[%emt 0:00:10]} Nc6 {[%emt 0:02:20]} 6. Qf4 {[%emt 0:00:05]} e6 {[%emt 0:07:42]} 7. Nc3 {[%emt 0:12:58]} Nb4 {[%emt 0:02:47]} 8. Bd3 {[%emt 0:00:00]} Nxd3+ {[%emt 0:11:32]} 9. cxd3 {[%emt 0:00:00]} Ne7 {[%emt 0:11:51]} 10. Ng5 {[%emt 0:02:34]} Nf5 {[%emt 0:00:37]} 11. Nxf7 {[%emt 0:00:18]} Kxf7 {[%emt 0:00:00]} 12. g4 {[%emt 0:08:45]} Be7 {[%emt 0:00:00]} 13. gxf5 {[%emt 0:00:00]} exf5 {[%emt 0:00:20]} 14. Ne2 {[%emt 0:13:37]} Be6 {[%emt 0:05:41]} 15. h4 {[%emt 0:03:09]} Qa5+ {[%emt 0:00:06]} 16. Kf1 {[%emt 0:10:13]} g6 {[%emt 0:17:56]} 17. Nd4 {[%emt 0:04:46]} Qa6 {[%emt 0:02:59]} 18. Ke2 {[%emt 0:00:00]} Rac8 {[%emt 0:03:58]} 19. Bd2 {[%emt 0:00:00]} Qb6 {[%emt 0:03:13]} 20. Bc3 {[%emt 0:06:23]} h6 {[%emt 0:05:07]} 21. Rag1 {[%emt 0:05:48]} Rcg8 {[%emt 0:04:07]} 22. a3 {[%emt 0:10:06]} a6 {[%emt 0:00:18]} 23. b4 {[%emt 0:04:39]} Qc7 {[%emt 0:01:22]} 24. Kd2 {[%emt 0:00:53]} Qd7 {[%emt 0:04:53]} 25. Qf3 {[%emt 0:05:14]} Rc8 {[%emt 0:00:15]} 26. Qg3 {[%emt 0:05:18]} Rhg8 {[%emt 0:01:10]} 27. Qe3 {[%emt 0:00:48]} Qa4 {[%emt 0:03:44]} 28. Nxe6 {[%emt 0:04:08]} Kxe6 {[%emt 0:02:50]} 29. Qxh6 {[%emt 0:00:38]} Rxc3 {[%emt 0:04:17]} 30. Kxc3 {[%emt 0:02:38]} Qxa3+ 31. Kd2 Bxb4+ {[%emt 0:02:30]} 32. Ke2 {[%emt 0:00:48]} Qb2+ {[%emt 0:01:49]} 33. Kf3 {[%emt 0:00:21]} Qxe5 {[%emt 0:00:38]} 34. Rxg6+ {[%emt 0:00:31]} Rxg6 {[%emt 0:00:03]} 35. Qxg6+ {[%emt 0:00:04]} Kd7 {[%emt 0:00:29]} 36. Qb6 {[%emt 0:01:48]} Bd6 {[%emt 0:00:30]} 37. Qxb7+ {[%emt 0:00:21]} Ke6 {[%emt 0:00:55]} 38. Qc8+ {[%emt 0:00:29]} Ke7 {[%emt 0:00:30]} 39. Qc1 {[%emt 0:00:07]} Kf7 40. Qg5 {[%emt 0:01:15]} d4 {[%emt 0:00:58]} 41. Qh5+ {[%emt 0:01:53]} Kf8 {[%emt 0:03:59]} 42. Kg2 {[%emt 0:00:50]} a5 {[%emt 0:02:10]} 43. Qf3 {[%emt 0:05:40]} a4 {[%emt 0:03:27]} 44. Qa8+ {[%emt 0:01:00]} Ke7 {[%emt 0:02:12]} 45. Qxa4 {[%emt 0:10:28]} Qd5+ {[%emt 0:00:07]} 46. Kg1 {[%emt 0:01:56]} Qf3 {[%emt 0:08:29]} 47. Qxd4 {[%emt 0:00:17]} Bf4 {[%emt 0:00:06]} 48. Qg7+ {[%emt 0:06:51]} Ke6 {[%emt 0:01:46]} 49. d4 {[%emt 0:00:30]} Kd6 {[%emt 0:06:17]} 50. Qg8 {[%emt 0:02:28]} Kc7 {[%emt 0:01:27]} 51. h5 {[%emt 0:00:37]} Qd3 {[%emt 0:00:46]} 52. Qf7+ {[%emt 0:02:19]} Kd6 {[%emt 0:00:25]} 53. Qe8 {[%emt 0:00:59]} Qd1+ {[%emt 0:02:12]} 54. Kg2 {[%emt 0:00:02]} Qg4+ {[%emt 0:00:05]} 55. Kf1 {[%emt 0:00:02]} Qd1+ {[%emt 0:02:40]} 56. Qe1 {[%emt 0:00:02]} Qf3 {[%emt 0:01:52]} 57. Qb4+ {[%emt 0:01:44]} Kd7 {[%emt 0:00:00]} 58. Qb5+ {[%emt 0:01:17]} Kd8 {[%emt 0:00:00]} 59. Rh4 {[%emt 0:00:46]} Bg3 {[%emt 0:01:00]} 60. Qa5+ {[%emt 0:00:27]} Kd7 {[%emt 0:00:15]} 61. Qb5+ {[%emt 0:00:44]} Kd8 {[%emt 0:00:10]} 62. Qb6+ {[%emt 0:00:26]} Kd7 {[%emt 0:00:05]} 63. Qb5+ {[%emt 0:00:32]} Kd8 {[%emt 0:01:58]} 1/2-1/2

[Event "44th Chess Olympiad Open 2022"]
[Site "Chennai"]
[Date "2022.08.05"]
[Round "7.22"]
[White "Henderson de La Fuente, Lance"]
[Black "Georgiadis, Nico"]
[Result "1-0"]
[ECO "D30"]
[WhiteElo "2490"]
[BlackElo "2578"]
[Annotator "TA"]
[PlyCount "97"]
[EventDate "2022.07.29"]
[EventType "team-tourn"]
[EventCountry "IND"]
[SourceTitle "playchess.com"]
[Source "ChessBase"]
[SourceQuality "1"]
[WhiteTeam "Andorra"]
[BlackTeam "Switzerland"]
[WhiteTeamCountry "AND"]
[BlackTeamCountry "SUI"]
[TimeControl "40/5400+30:1800+30"]

{[%evp 9,97,0,-3,-22,-29,-20,-17,-29,-18,-25,-26,-10,-25,-24,-23,-35,-35,-31,-44,-27,23,21,28,17,17,19,13,0,0,0,108,121,116,63,74,77,63,61,146,137,172,180,229,136,144,138,136,135,188,179,141,163,154,119,276,275,348,350,379,376,391,375,391,391,383,383,376,370,363,332,721,735,732,732,721,694,692,692,674,682,615,571,681,677,671,558,483,514,635,513]} 1. d4 {[%emt 0:00:27]} Nf6 {[%emt 0:00:08]} 2. Nf3 {[%emt 0:00:23]} d5 {[%emt 0:00:08]} 3. c4 {[%emt 0:00:22]} e6 {[%emt 0:00:06]} 4. Bg5 {[%emt 0:02:40]} Bb4+ {[%emt 0:04:36]} 5. Nbd2 {[%emt 0:05:37]} dxc4 {[%emt 0:01:26]} 6. Qc2 {[%emt 0:13:37] D30: Queen's Gambit Declined: Systems without Nc3.} b5 {[%emt 0:07:30]} 7. a4 {[%emt 0:05:42]} c6 {[%emt 0:03:06]} 8. Bxf6 {[%emt 0:07:41] The position is equal.} gxf6 {[%emt 0:00:44]} (8... Qxf6 9. axb5 O-O 10. e3 $14) 9. g3 {[%emt 0:00:16]} Bb7 {[%emt 0:06:11]} 10. Bg2 {[%emt 0:00:23]} a5 {[%emt 0:03:47]} 11. O-O {[%emt 0:00:49]} Nd7 {[%emt 0:00:17]} 12. b3 {[%emt 0:01:48]} cxb3 {[%emt 0:03:01]} 13. Nxb3 {[%emt 0:00:13]} bxa4 {[%emt 0:16:06]} 14. Rxa4 {[%emt 0:01:53]} c5 {[%emt 0:05:43] [#]} (14... Ba6 $142) 15. dxc5 $146 {[%emt 0:04:48] Threatens to win with c6.} ({Predecessor:} 15. Nxc5 Nxc5 16. dxc5 Rc8 17. Rxb4 axb4 18. Qa4+ Bc6 19. Qxb4 O-O 20. Rc1 Rc7 21. Ne1 Bxg2 22. Nxg2 {0-1 (56) Vovk,Y (2550)-Moiseenko,A (2679) Kiev 2011}) 15... Rc8 {[%emt 0:01:08]} 16. Rd1 {[%emt 0:03:08][%cal Oa4b4] aiming for Rxb4!} Qc7 {[%emt 0:01:47][%cal Rd7c5]} 17. Rc1 {[%emt 0:07:40]} O-O {[%emt 0:05:54][%cal Rd7c5]} ({Don't do} 17... Bxc5 18. Rc4 Bd5 19. Rxc5 Nxc5 20. Nxc5 $16) 18. Nfd4 {[%emt 0:14:34]} Bxg2 {[%emt 0:02:49]} (18... Bxc5 $2 19. Bxb7 Qxb7 20. Rc4 $16) 19. Kxg2 {[%emt 0:00:09]} e5 {[%emt 0:06:09]} (19... Qd8 $11 {remains equal.}) 20. Nf3 $16 {[%emt 0:00:18] White is more active.} Rfe8 {[%emt 0:06:05] [#]} 21. Qe4 {[%emt 0:02:16]} ({Better is} 21. Qa2 $1 $16) 21... Qc6 $14 {[%emt 0:10:18]} 22. Qxc6 {[%emt 0:01:13]} Rxc6 {[%emt 0:00:03]} 23. Nxa5 {[%emt 0:00:20]} Bxa5 {[%emt 0:00:56]} (23... Rxc5 $14 24. Rd1 Rxa5 25. Rxb4 Nc5) 24. Rxa5 $16 {[%emt 0:00:06]} h5 {[%emt 0:03:45]} 25. Nh4 {[%emt 0:00:57]} e4 {[%emt 0:00:37]} (25... Nf8 $142 26. Nf5 Ne6) 26. Ra7 {[%emt 0:01:01]} (26. Nf5 $18) 26... Rxc5 {[%emt 0:02:16]} 27. Rxc5 {[%emt 0:00:44]} Nxc5 {[%emt 0:00:05][%mdl 4096] Endgame KRN-KRN} 28. Nf5 {[%emt 0:00:06]} Re5 {[%emt 0:04:44] [#]} (28... Rd8 $16) 29. Nh6+ $1 $18 {[%emt 0:01:56]} Kg7 {[%emt 0:00:04]} 30. Nxf7 {[%emt 0:00:11]} Rd5 {[%emt 0:00:08]} 31. Ng5+ {[%emt 0:00:45]} Kg8 $2 {[%emt 0:03:16] This costs Black the game.} (31... Kh6 $16 {was necessary.}) 32. Nh3 {[%emt 0:00:20]} h4 {[%emt 0:00:13]} 33. gxh4 {[%emt 0:04:02]} Ne6 {[%emt 0:00:17]} 34. e3 {[%emt 0:02:20]} Rh5 {[%emt 0:02:05]} 35. Re7 {[%emt 0:02:10]} Re5 {[%emt 0:00:07][%cal Oe6f4]} 36. Kg3 {[%emt 0:00:25] Against Nf4} Kf8 {[%emt 0:00:08]} 37. Ra7 {[%emt 0:00:10]} Kg8 {[%emt 0:01:12]} 38. Kg4 {[%emt 0:01:05]} Rb5 {[%emt 0:00:57]} 39. h5 {[%emt 0:05:29][%cal Bh4h5,Bh5h6,Bh6h7][%mdl 32] Black must now prevent h6.} Ng7 $2 {[%emt 0:00:15]} (39... Nc5 40. Kf5 Nd7+ 41. Kxe4 Rxh5) 40. h6 {White is clearly winning.} Nf5 {[%emt 0:00:22]} 41. h7+ {[%emt 0:31:00]} Kh8 {[%emt 0:30:06]} 42. Kh5 {[%emt 0:04:39]} Ne7+ {[%emt 0:00:00]} 43. Kh6 {[%emt 0:00:00] Intending Ra8+ and mate.} Nf5+ {[%emt 0:00:00]} 44. Kg6 {[%emt 0:00:00] White wants to mate with Ra8+.} Nh4+ {[%emt 0:00:00]} 45. Kxf6 {[%emt 0:00:00] Hoping for Ra8+.} Rb6+ {[%emt 0:00:00]} 46. Ke5 {[%emt 0:00:00]} Nf3+ {[%emt 0:00:00]} 47. Kd5 {[%emt 0:00:00]} Rh6 {[%emt 0:00:00]} 48. Nf4 {[%emt 0:00:00]} Ng5 {[%emt 0:00:00]} 49. h4 {[%emt 0:00:00] Weighted Error Value: White=0.09 (flawless) /Black=0.27 (precise)} 1-0

[Event "44th Chess Olympiad Open 2022"]
[Site "Chennai"]
[Date "2022.08.05"]
[Round "7.22"]
[White "Baenziger, Fabian"]
[Black "Ribera Veganzones, Serni"]
[Result "1-0"]
[ECO "E15"]
[WhiteElo "2451"]
[BlackElo "2203"]
[Annotator "TA"]
[PlyCount "47"]
[EventDate "2022.07.29"]
[EventType "team-tourn"]
[EventCountry "IND"]
[SourceTitle "playchess.com"]
[Source "ChessBase"]
[SourceQuality "1"]
[WhiteTeam "Switzerland"]
[BlackTeam "Andorra"]
[WhiteTeamCountry "SUI"]
[BlackTeamCountry "AND"]
[TimeControl "40/5400+30:1800+30"]

{[%evp 14,47,47,52,66,63,59,59,81,54,57,54,56,51,81,72,75,70,75,77,70,59,62,77,63,65,106,97,150,146,230,209,497,492,488,472]} 1. d4 {[%emt 0:00:05]} Nf6 {[%emt 0:00:21]} 2. c4 {[%emt 0:00:14]} e6 {[%emt 0:00:24]} 3. Nf3 {[%emt 0:00:37]} b6 {[%emt 0:00:32]} 4. g3 {[%emt 0:00:19]} Ba6 {[%emt 0:00:37][%cal Bc8a6,Ba6b5,Bb5c6][%mdl 32]} 5. b3 {[%emt 0:01:41]} b5 {[%emt 0:02:33]} 6. cxb5 {[%emt 0:00:36]} Bxb5 {[%emt 0:00:13]} 7. Bg2 {[%emt 0:00:04]} Bc6 {[%emt 0:01:49]} 8. O-O {[%emt 0:01:25]} Qc8 {[%emt 0:04:37] E15: Queen's Indian: 4 g3 sidelines, 4 g3 Ba6 and 4 g3 Bb7 early deviations.} 9. Bg5 {[%emt 0:07:13]} Ne4 {[%emt 0:06:48]} 10. Bf4 {[%emt 0:00:42]} d6 {[%emt 0:02:19] [#] White is slightly better.} 11. Nfd2 $146 {[%emt 0:08:36]} ({Predecessor:} 11. Qd3 Qb7 12. Rc1 Nd7 13. Rxc6 Qxc6 14. Ng5 f5 15. Nxe6 Rc8 16. d5 Qb6 17. Bxe4 {1-0 (24) Shneider,A (2532)-Grabinsky,V (2281) Cappelle la Grande 2007}) 11... Nxd2 {[%emt 0:13:14]} 12. Bxc6+ {[%emt 0:02:29]} Nxc6 {[%emt 0:00:14]} 13. Qxd2 {[%emt 0:00:05]} Nd8 {[%emt 0:04:12]} 14. Nc3 {[%emt 0:08:02]} Be7 {[%emt 0:03:03]} 15. Rac1 {[%emt 0:00:43] And now Nb5 would win.} Qd7 {[%emt 0:00:50] Prevents Nb5.} 16. e4 {[%emt 0:03:32]} O-O {[%emt 0:04:37]} 17. d5 {[%emt 0:09:48]} c6 {[%emt 0:03:33]} 18. dxc6 {[%emt 0:03:01]} Nxc6 {[%emt 0:00:37]} 19. Rfd1 {[%emt 0:00:04]} Rfd8 {[%emt 0:03:27] [#]} 20. Nb5 $1 {[%emt 0:03:18]} Bf8 {[%emt 0:26:05]} (20... e5 $142) 21. Qc3 $16 {[%emt 0:03:24] 0x0.002098c22294dp-1022s more active pieces.} ({Of course not} 21. Nxd6 e5 22. Qd5 Nd4 23. Rxd4 exd4 $11) ({But not} 21. Bxd6 $6 a6 22. Bf4 (22. Nc7 Rac8 $17) 22... Qxd2 23. Rxd2 Rxd2 24. Bxd2 axb5 $14) 21... Ne5 {[%emt 0:05:31]} (21... Rab8 $16 {was worth a try.}) 22. Nc7 $18 {[%emt 0:01:24]} Rac8 {[%emt 0:02:06]} (22... Rab8 23. Bxe5 Rdc8) 23. Bxe5 {[%emt 0:00:07]} Qe7 {[%emt 0:01:55]} 24. Bf4 {[%emt 0:01:35] Weighted Error Value: White=0.03 (flawless) /Black=0.35} 1-0

[Event "44th Chess Olympiad Open 2022"]
[Site "Chennai"]
[Date "2022.08.05"]
[Round "7.22"]
[White "De La Riva Aguado, Oscar"]
[Black "Pelletier, Yannick"]
[Result "1-0"]
[ECO "C00"]
[WhiteElo "2424"]
[BlackElo "2551"]
[Annotator "TA"]
[PlyCount "139"]
[EventDate "2022.07.29"]
[EventType "team-tourn"]
[EventCountry "IND"]
[SourceTitle "playchess.com"]
[Source "ChessBase"]
[SourceQuality "1"]
[WhiteTeam "Andorra"]
[BlackTeam "Switzerland"]
[WhiteTeamCountry "AND"]
[BlackTeamCountry "SUI"]
[TimeControl "40/5400+30:1800+30"]

{[%evp 9,139,-7,-7,-7,-3,0,-10,-27,-29,-27,-39,-43,-28,-44,-26,-46,-47,-54,-23,-76,0,-56,-58,-85,-51,-101,0,-66,0,-82,-16,-22,0,0,0,0,0,0,0,0,24,0,0,0,0,0,0,0,8,10,68,59,75,59,61,0,52,0,19,22,28,55,106,106,106,106,109,106,106,68,97,58,61,0,106,0,64,58,78,78,106,106,106,0,106,106,109,109,110,52,110,100,100,100,115,100,107,107,114,114,114,116,116,115,115,115,115,115,115,115,506,475,412,405,756,744,738,688,817,1066,1864,1601,29982,29980,29984,29985,29989,29988,29991,29992,29992,29993]} 1. e4 {[%emt 0:00:04]} c5 {[%emt 0:00:16]} 2. Nf3 {[%emt 0:00:12]} e6 {[%emt 0:00:24]} 3. d3 {[%emt 0:01:44]} d5 {[%emt 0:01:06]} 4. Qe2 {[%emt 0:00:34]} Nf6 {[%emt 0:00:32]} 5. g3 {[%emt 0:01:18]} Be7 {[%emt 0:00:28]} 6. Bg2 {[%emt 0:00:27] C00: French: Unusual White 2nd moves.} b5 {[%emt 0:01:30]} 7. O-O {[%emt 0:10:40]} O-O {[%emt 0:00:36]} 8. e5 {[%emt 0:04:15] The position is equal.} Nfd7 {[%emt 0:00:07]} 9. h4 {[%emt 0:00:06]} Nc6 {[%emt 0:05:47]} 10. Bg5 {[%emt 0:08:01]} a5 {[%emt 0:07:51]} 11. Nbd2 {[%emt 0:02:56]} b4 {[%emt 0:11:01]} 12. Rfe1 {[%emt 0:04:53]} Ba6 {[%emt 0:09:53]} 13. Qe3 {[%emt 0:08:22] [#]} a4 $146 {[%emt 0:18:49]} ({Predecessor:} 13... Rc8 14. Qf4 a4 15. a3 Bb5 16. Bf1 h6 17. Bxe7 Qxe7 18. c4 bxc3 19. bxc3 Na5 {½-½ (26) Rustemov,A (2575)-Kiriakov,P (2495) Nizhnij Novgorod 1998}) 14. Qf4 {[%emt 0:11:40]} (14. a3 $11) 14... h6 {[%emt 0:07:20]} (14... Bxg5 $17 15. Nxg5 h6) 15. Bxe7 {[%emt 0:03:08]} (15. Bxh6 $1 $11 gxh6 16. Qxh6) 15... Qxe7 $15 {[%emt 0:00:03]} 16. Bh3 {[%emt 0:04:10]} Rfc8 {[%emt 0:02:03]} 17. h5 {[%emt 0:04:41]} ({White should play} 17. a3 $15) 17... Nd4 {[%emt 0:09:43]} (17... a3 $17 18. b3 (18. bxa3 Bb7 $17) 18... Nf8) 18. Rac1 {[%emt 0:12:28]} (18. Nxd4 $11 cxd4 19. Rac1) 18... Rc7 {[%emt 0:00:11]} (18... Nxf3+ $15 19. Nxf3 Bb7) 19. g4 {[%emt 0:05:55]} (19. Nxd4 $11 {keeps the balance.} cxd4 20. Nf3) 19... Nxf3+ {[%emt 0:03:43]} (19... a3 $17 20. b3 Nb5) 20. Nxf3 $11 {[%emt 0:00:05]} b3 {[%emt 0:00:08]} 21. axb3 {[%emt 0:00:39]} axb3 {[%emt 0:00:04]} 22. c4 {[%emt 0:01:01]} dxc4 {[%emt 0:04:04]} 23. dxc4 {[%emt 0:00:08]} Bb7 {[%emt 0:00:12]} 24. Rc3 {[%emt 0:02:28][%cal Bc1c3,Bc3b3,Bb3b6][%mdl 32]} Bxf3 {[%emt 0:03:47]} 25. Qxf3 {[%emt 0:00:14]} Rd8 {[%emt 0:00:16]} 26. Rxb3 {[%emt 0:02:04]} Nb8 {[%emt 0:05:06]} 27. Rb6 {[%emt 0:03:53]} Rcd7 {[%emt 0:03:20]} 28. Bf1 {[%emt 0:00:19]} Rd4 {[%emt 0:00:25]} 29. Re4 {[%emt 0:01:29]} Qc7 {[%emt 0:04:48]} (29... Rd2 $11) 30. Rxd4 $14 {[%emt 0:00:58]} Qxb6 {[%emt 0:00:12]} 31. Rxd8+ {[%emt 0:01:52]} Qxd8 {[%emt 0:00:02][%mdl 4096] Endgame KQB-KQN} 32. Qe4 {[%emt 0:00:07]} (32. Be2 $14) 32... Nd7 {[%emt 0:01:04]} (32... Qd1 $11) 33. f4 {[%emt 0:03:01]} (33. Qd3 $1 $14) 33... Qh4 {[%emt 0:00:55]} 34. Be2 {[%emt 0:00:49]} Qg3+ {[%emt 0:00:27]} 35. Kf1 {[%emt 0:00:14]} Qb3 {[%emt 0:01:07]} ({Black should try} 35... Nb6 $14) 36. Qd3 $16 {[%emt 0:00:32]} Qb7 {[%emt 0:00:33]} 37. Bf3 {[%emt 0:00:19]} Qa7 {[%emt 0:00:02]} 38. Kg2 {[%emt 0:01:08]} Nf8 {[%emt 0:00:29]} 39. Qd2 {[%emt 0:02:04]} Qa2 {[%emt 0:00:40]} 40. Be2 {[%emt 0:00:52]} Qa8+ {[%emt 0:00:37]} 41. Bf3 {[%emt 0:30:22]} Qa2 {[%emt 0:02:36]} 42. Be2 {[%emt 0:00:00]} (42. Qc3 {is more complex.} Qb1 43. b3 Nd7 44. Qe3) 42... Qa8+ $1 {[%emt 0:00:43]} 43. Kg3 {[%emt 0:00:00]} ({Much less strong is} 43. Bf3 Qa2 $16) (43. Kg1 {seems wilder.} Qe4 44. Kf2 Qh1 45. Qe3) 43... Qa1 {[%emt 0:02:51]} 44. Bf3 {[%emt 0:00:00]} Qa2 {[%emt 0:02:22]} 45. Qc3 {[%emt 0:00:00]} Qa1 {[%emt 0:01:37]} 46. Qe3 {[%emt 0:08:00]} (46. Kf2 $16) 46... Qa5 {[%emt 0:00:20]} (46... Qxb2 $11 47. Qxc5 Qc3) 47. b3 {[%emt 0:00:00]} Qa3 {[%emt 0:02:33]} 48. Be4 {[%emt 0:00:00]} Qa5 {[%emt 0:01:05]} 49. Kf3 {[%emt 0:00:00]} (49. Bd3 $16) 49... Qa1 {[%emt 0:01:59]} ({Better is} 49... Qa2 $1 $14) 50. Ke2 {[%emt 0:00:00] Active counter play!} ({Don't blunder} 50. Qxc5 $2 Qh1+ 51. Kf2 Qxe4 $19) 50... Qa2+ {[%emt 0:02:33]} 51. Kd1 {[%emt 0:00:00]} (51. Ke1 {keeps more tension.} Nd7 52. Bc6 Nf8 53. Bb7) 51... Qa1+ {[%emt 0:00:27]} 52. Kc2 {[%emt 0:00:00]} Qa2+ {[%emt 0:00:20]} 53. Kc1 {[%emt 0:00:00]} Qa1+ {[%emt 0:00:29]} 54. Bb1 {[%emt 0:00:00]} Nd7 {[%emt 0:02:13]} 55. Qd2 {[%emt 0:00:00]} Nf8 {[%emt 0:00:57]} 56. Kc2 {[%emt 0:00:00]} Qa8 {[%emt 0:00:42]} 57. Qf2 {[%emt 0:00:00]} Nd7 {[%emt 0:02:16]} 58. Kb2 {[%emt 0:00:00]} Qa5 {[%emt 0:05:09]} 59. Qe3 {[%emt 0:00:00] [#] Hoping for Qd3.} Qb6 $2 {[%emt 0:01:46][%mdl 8192] A mistake that costs the game.} (59... Kf8 $16 60. Bc2 Qb4) 60. Qd2 $18 {[%emt 0:00:00]} Nf8 {[%emt 0:00:43]} 61. Qd6 {[%emt 0:00:00]} Qa5 {[%emt 0:00:26]} (61... Qxd6 $142 62. exd6 Nd7) 62. Bc2 {[%emt 0:00:00]} Qa7 {[%emt 0:00:38]} 63. g5 {[%emt 0:00:00]} Qa5 {[%emt 0:04:10]} 64. g6 {[%emt 0:00:00]} fxg6 {[%emt 0:00:45]} 65. hxg6 {[%emt 0:00:00] f5 would kill now.} h5 {[%emt 0:03:00]} 66. Qe7 {[%emt 0:00:00] White mates.} Qa8 {[%emt 0:00:09] [#]} 67. Be4 $1 {[%emt 0:00:00][%mdl 512]} Qc8 {[%emt 0:00:24]} (67... Qb8 68. Bc6) 68. f5 {[%emt 0:00:00]} exf5 {[%emt 0:00:57]} 69. Bd5+ {[%emt 0:00:00]} Kh8 {[%emt 0:00:05]} 70. Qg5 {[%emt 0:00:00] Weighted Error Value: White=0.19 (very precise) /Black=0.30} 1-0

[Event "44th Chess Olympiad Open 2022"]
[Site "Chennai"]
[Date "2022.08.05"]
[Round "7.23"]
[White "Amin, Bassem"]
[Black "Baburin, Alexander"]
[Result "1-0"]
[ECO "B03"]
[WhiteElo "2680"]
[BlackElo "2400"]
[Annotator "TA"]
[PlyCount "64"]
[EventDate "2022.07.29"]
[EventType "team-tourn"]
[EventCountry "IND"]
[SourceTitle "playchess.com"]
[Source "ChessBase"]
[SourceQuality "1"]
[WhiteTeam "Egypt"]
[BlackTeam "Ireland"]
[WhiteTeamCountry "EGY"]
[BlackTeamCountry "IRL"]
[TimeControl "40/5400+30:1800+30"]

{[%evp 24,64,41,31,61,32,34,48,84,92,95,100,81,78,115,83,120,62,139,132,145,138,146,146,153,146,216,218,206,209,228,232,299,293,291,302,288,297,291,195,195,195,177]} 1. e4 {[%emt 0:00:43][%cal Be2e4,Be4e5][%mdl 32]} Nf6 {[%emt 0:00:11][%cal Bg8f6,Bf6d5,Bd5b6][%mdl 32]} 2. e5 {[%emt 0:00:39]} Nd5 {[%emt 0:00:06]} 3. d4 {[%emt 0:00:11]} d6 {[%emt 0:00:09]} 4. c4 {[%emt 0:00:42]} Nb6 {[%emt 0:00:09]} 5. f4 {[%emt 0:00:47]} Bf5 {[%emt 0:00:16]} 6. Nc3 {[%emt 0:00:29]} e6 {[%emt 0:00:06]} 7. Nf3 {[%emt 0:06:14]} Be7 {[%emt 0:02:12]} 8. Be3 {[%emt 0:00:35]} O-O {[%emt 0:01:05]} 9. Be2 {[%emt 0:00:17]} dxe5 {[%emt 0:00:24]} 10. fxe5 {[%emt 0:00:10]} Nc6 {[%emt 0:00:29]} 11. O-O {[%emt 0:00:23]} f6 {[%emt 0:00:05]} 12. exf6 {[%emt 0:00:22]} Bxf6 {[%emt 0:00:11]} 13. Qd2 {[%emt 0:00:18]} h6 {[%emt 0:01:06] B03: Alekhine's Defence: Four Pawns Attack.} 14. Rad1 {[%emt 0:01:25]} Qe8 {[%emt 0:02:58]} 15. Bf2 {[%emt 0:36:39] [#]} Bg4 $146 {[%emt 0:05:33] White is slightly better.} ({Predecessor:} 15... Rd8 16. Qe3 Bg4 17. Ne4 Bxf3 18. Nxf6+ Rxf6 19. gxf3 Ne7 20. Qe4 Ng6 21. Bg3 c6 {½-½ (34) Packroff,H (2155)-Eigenmann,W (2135) ICCF email 2021}) 16. b3 {[%emt 0:04:59] White now steadily converts the win.} Qg6 {[%emt 0:12:43] Prevents Ne4.} 17. Nh4 {[%emt 0:12:12]} Bxh4 {[%emt 0:14:46]} 18. Bxh4 {[%emt 0:00:10]} e5 {[%emt 0:00:47]} 19. dxe5 {[%emt 0:03:44]} Nxe5 {[%emt 0:13:28]} 20. Bg3 {[%emt 0:03:07]} (20. Bxg4 $16 Rxf1+ 21. Rxf1 Qxg4 22. Bg3) 20... Rfe8 {[%emt 0:12:39]} (20... Rxf1+ $1 $14 21. Rxf1 Bxe2 22. Nxe2 (22. Qxe2 Re8 $14) 22... Re8) 21. Bxg4 $16 {[%emt 0:01:27]} Nxg4 {[%emt 0:07:07]} 22. Rfe1 {[%emt 0:03:44] Inhibits Ne3.} (22. Bxc7 Ne3 $15) 22... Qf5 {[%emt 0:03:13]} 23. Nb5 {[%emt 0:03:44]} Rxe1+ {[%emt 0:09:00]} 24. Rxe1 {[%emt 0:02:49]} c6 {[%emt 0:01:47]} (24... Rf8 $16 25. h3 (25. Bxc7 a6 $16) 25... Qc5+ 26. Kh1 Nf6 27. Bxc7 (27. Nxc7 Ne4 $16) 27... Qc6) 25. Nd6 $18 {[%emt 0:00:33][%csl LRb7,LRf5] Active counter play!} Qc5+ {[%emt 0:04:25]} 26. Kh1 {[%emt 0:00:13]} Rf8 {[%emt 0:00:07]} 27. h3 {[%emt 0:00:50]} ({Much less strong is} 27. Nxb7 $6 Nf2+ 28. Bxf2 (28. Kg1 Nh3+ 29. Kh1 Nf2+ 30. Bxf2 Qxf2 $16) 28... Qxf2 29. Qxf2 Rxf2) 27... Qh5 {[%emt 0:02:43]} 28. Nxb7 {[%emt 0:05:27]} Qf7 {[%emt 0:00:55][%cal Of7f1] [#] ( -> ...Qf1+!)} 29. hxg4 {[%emt 0:02:27]} Qxb7 {[%emt 0:00:05]} 30. Qd6 {[%emt 0:00:22] Re7 is the strong threat.} Qc8 {[%emt 0:02:21]} 31. Re6 {[%emt 0:02:47]} Re8 {[%emt 0:01:27]} 32. Rg6 {[%emt 0:01:44] [#] aiming for Be5.} Nd7 {[%emt 0:00:31] Prevents Be5.  Weighted Error Value: White=0.11 (very precise) /Black=0.24 (precise)} 1-0